bitfinex-derivatives/quotes_BNBF0:USTF0_20250425
["timestamp","ask_amount","ask_price","bid_price","bid_amount"]
[1745578844143,1.37438788,605.84,605.03,0.30325346]
[1745578844345,1.37438788,605.83,605.03,0.30325346]
[1745578844542,1.37438788,605.82,605.03,0.30325346]
[1745578844745,2.5064103,605.81,605.03,0.30325346]
[1745578844944,1.37438788,605.8,604.99,0.30325346]
[1745578845141,1.13202242,605.79,605.0,0.30325551]
[1745578845344,1.13202242,605.79,604.99,0.30325551]
[1745578845543,2.50730516,605.78,605.0,0.30325551]
[1745578845839,2.50730516,605.78,605.01,0.30325551]
[1745578845840,1.37528274,605.77,605.01,0.30325551]
[1745578846045,1.37528274,605.76,605.01,0.30325551]
[1745578846242,1.13202242,605.78,605.02,0.30325551]
[1745578846444,2.50738681,605.77,605.0,0.30325551]
[1745578846641,2.50738681,605.76,604.99,0.28734209]
[1745578846941,1.13202242,605.76,605.0,0.30326725]
[1745578847246,1.24128218,607.54,605.0,0.30326725]
[1745578847247,1.13202242,605.75,605.0,0.30326725]
[1745578847747,1.13202242,605.74,605.06,1.04680513]
[1745578847947,1.24128218,607.3,605.07,0.30326725]
[1745578848150,1.37592285,607.29,605.07,0.30326725]
[1745578848446,2.50944912,607.28,605.08,0.30324835]
[1745578848668,1.37592285,607.27,605.07,0.30324835]
[1745578848844,1.37592285,607.26,605.08,0.30324835]
[1745578849045,2.50944912,607.25,605.07,0.30324835]
[1745578849247,1.37592285,607.24,605.08,0.30324835]
[1745578849443,1.37592285,607.23,605.07,0.30324835]
[1745578849648,2.50944912,607.22,605.07,0.30324835]
[1745578849845,1.37592285,607.21,605.06,1.04680513]
[1745578850046,1.37592285,607.2,605.07,0.30319695]
[1745578850248,1.37592285,607.19,605.07,0.30319695]
[1745578850447,2.50944912,607.18,605.03,0.30319695]
[1745578850643,1.37592285,607.17,605.03,0.30319695]
[1745578850843,1.37592285,607.16,605.03,0.30319695]
[1745578851046,2.50944912,607.15,605.03,0.30319695]
[1745578851247,1.37681964,607.14,605.03,0.30319695]
[1745578851448,1.37681964,607.13,605.03,0.30319695]
[1745578851749,2.51034591,607.12,605.03,0.30319695]
[1745578851949,1.37681964,607.11,605.03,0.30319695]
[1745578852145,1.37681964,607.1,605.04,1.04680513]
[1745578852344,2.51034591,607.09,605.05,0.30319695]
[1745578852551,1.37681964,607.08,605.05,0.30319695]
[1745578852747,1.37681964,607.07,605.05,0.30319695]
[1745578852946,1.37681964,607.06,605.05,0.30319695]
[1745578853150,2.51034591,607.05,605.05,0.30319695]
[1745578853351,1.37681964,607.04,605.05,0.30319695]
[1745578853551,1.37681964,607.03,605.05,0.30319695]
[1745578853750,2.51034591,607.02,605.05,0.30319695]
[1745578853950,1.37681964,607.01,605.05,0.30319695]
[1745578854151,1.37681964,607.0,605.05,0.30319695]
[1745578854351,1.37681964,606.99,605.05,1.45219695]
[1745578854548,1.37681964,606.98,605.06,0.30319695]
[1745578854754,1.37681964,606.97,605.06,0.30319695]
[1745578854952,2.51034591,606.96,605.06,0.30319695]
[1745578855157,1.37681964,606.95,605.06,0.30319695]
[1745578855452,1.37681964,606.94,605.06,1.64319695]
[1745578855649,2.51034591,606.93,605.07,0.30319695]
[1745578855948,1.37681964,606.92,605.07,0.30319695]
[1745578856151,2.51034591,606.91,605.06,1.34]
[1745578856351,1.37681964,606.9,605.07,0.30318278]
[1745578856550,1.37681964,606.89,605.07,0.30318278]
[1745578856753,1.37681964,606.88,605.07,0.30318278]
[1745578856952,1.37681964,606.87,605.07,0.30318278]
[1745578857252,1.37771912,606.86,605.07,0.30318278]
[1745578857457,1.37771912,606.85,605.07,0.30318278]
[1745578857653,2.51124539,606.84,605.07,0.30318278]
[1745578857954,1.37771912,606.83,605.08,0.3031823]
[1745578858147,1.37771912,606.82,605.09,0.3031823]
[1745578858348,2.51124539,606.81,605.1,0.3031823]
[1745578858548,1.37771912,606.8,605.07,0.3031823]
[1745578858848,2.51077382,606.79,605.08,0.3031823]
[1745578859049,1.37724755,606.78,605.07,0.3031823]
[1745578859248,1.37724755,606.77,605.07,0.3031823]
[1745578859449,1.37724755,606.76,605.08,0.30315834]
[1745578859653,1.37724755,606.75,605.07,0.30315834]
[1745578859951,1.37724755,606.74,605.07,0.30315834]
[1745578860162,1.37724755,606.73,605.07,0.30315834]
[1745578860348,1.37724755,606.72,605.14,1.04680513]
[1745578860554,1.37743796,606.71,605.15,0.30315834]
[1745578860753,2.51096423,606.7,605.15,0.30315834]
[1745578860951,1.37743796,606.69,605.15,0.30315834]
[1745578861151,1.37743796,606.68,605.15,0.30315834]
[1745578861354,1.37743796,606.67,605.15,0.30315834]
[1745578861558,2.51096423,606.66,605.15,0.30315834]
[1745578861758,1.37780553,606.65,605.15,0.30315834]
[1745578861958,1.37780553,606.64,605.15,0.30315834]
[1745578862153,1.37780553,606.63,605.15,0.30315834]
[1745578862356,2.5113318,606.62,605.15,0.30315834]
[1745578862553,1.37780553,606.61,605.15,0.30315834]
[1745578862757,1.37780553,606.6,605.15,0.30315834]
[1745578862955,1.37780553,606.59,605.15,0.30315834]
[1745578863158,2.5113318,606.58,605.15,0.30315834]
[1745578863356,1.37780553,606.57,605.15,0.30315834]
[1745578863561,1.13352627,606.58,605.15,0.30315834]
[1745578863562,1.37780553,606.56,605.15,0.30315834]
[1745578863756,2.5113318,606.55,605.16,0.30315834]
[1745578864060,2.5113318,606.54,605.17,0.30315834]
[1745578864287,1.37780553,606.53,605.17,0.30315834]
[1745578864457,1.37780553,606.52,605.18,0.30315834]
[1745578864658,1.37780553,606.51,605.12,0.30315834]
[1745578864859,1.37780553,606.5,605.12,0.30315834]
[1745578865055,1.37780553,606.49,605.12,0.30315834]
[1745578865261,1.37780553,606.48,605.12,0.30315834]
[1745578865462,1.37780553,606.47,605.12,0.30315834]
[1745578865658,2.5113318,606.46,605.12,0.30315834]
[1745578865857,1.37780553,606.45,605.12,0.30315834]
[1745578866061,1.37780553,606.44,605.12,0.30315834]
[1745578866358,2.5113318,606.43,605.12,0.30315834]
[1745578866561,1.37780553,606.42,605.1,0.30315834]
[1745578866766,1.37780553,606.41,605.09,0.28717966]
[1745578866963,1.37780553,606.4,605.1,0.30316906]
[1745578867158,1.37780553,606.39,605.07,0.30316906]
[1745578867364,1.13352627,606.4,605.07,0.30316906]
[1745578867365,1.37780553,606.38,605.09,0.28720928]
[1745578867560,1.37780553,606.37,605.1,0.30316906]
[1745578867763,1.37780553,606.36,605.1,0.30316906]
[1745578867964,1.37780553,606.35,605.1,0.30316906]
[1745578868163,1.37780553,606.34,605.1,0.30316906]
[1745578868365,1.37780553,606.33,605.1,0.30316906]
[1745578868560,2.5113318,606.32,605.1,0.30316906]
[1745578868763,1.37780553,606.31,605.1,0.30316906]
[1745578868959,1.37780553,606.3,605.1,0.30316906]
[1745578869159,1.37780553,606.29,605.1,0.30316906]
[1745578869459,1.37780553,606.28,605.1,0.30316906]
[1745578869660,2.5113318,606.27,605.1,0.30316906]
[1745578869862,1.37780553,606.26,605.1,0.30316906]
[1745578870059,1.37780553,606.25,605.1,0.30316906]
[1745578870264,1.37780553,606.24,605.09,0.28722351]
[1745578870461,2.5113318,606.23,605.1,0.30316906]
[1745578870662,1.37780553,606.22,605.1,0.30316906]
[1745578870865,1.37780553,606.21,605.1,0.30316906]
[1745578871065,1.37780553,606.2,605.1,0.30316906]
[1745578871371,2.5113318,606.19,605.1,0.30316906]
[1745578871562,1.37780553,606.18,605.11,0.30317826]
[1745578871768,1.37780553,606.17,605.1,0.30317826]
[1745578871968,2.5113318,606.16,605.11,0.30317826]
[1745578872264,1.37780553,606.15,605.12,0.30317826]
[1745578872466,1.37780553,606.14,605.13,0.30317826]
[1745578872663,1.37926877,606.13,605.1,0.30317826]
[1745578872867,1.37926877,606.12,605.11,0.30317826]
[1745578873064,1.37926877,606.11,605.12,0.30317826]
[1745578873366,1.37926877,606.1,605.13,0.30317826]
[1745578873561,1.37926877,606.09,605.11,0.30317826]
[1745578873767,2.51279504,606.08,605.11,0.30317826]
[1745578873962,1.37926877,606.07,605.11,0.30317826]
[1745578874168,2.51279504,606.06,605.11,0.30317826]
[1745578874361,1.37926877,606.05,605.11,0.30317826]
[1745578874567,1.37926877,606.04,605.11,0.30317826]
[1745578874868,1.37926877,606.03,605.11,0.30317826]
[1745578875069,1.37926877,606.02,605.11,0.30317826]
[1745578875369,1.37926877,606.01,605.11,0.30317826]
[1745578875667,2.51279504,606.0,605.11,0.30317826]
[1745578875869,1.37926877,605.99,605.11,0.30317826]
[1745578876065,2.51279504,605.98,605.11,0.30317826]
[1745578876269,1.37926877,605.97,605.11,0.30317826]
[1745578876470,1.13352627,605.98,605.11,0.30317826]
[1745578876869,1.13352627,605.97,605.11,0.30317826]
[1745578877272,1.13352627,605.96,605.11,0.30317826]
[1745578877667,1.13352627,605.96,605.1,0.28724484]
[1745578877870,1.24128218,607.74,605.11,0.30311365]
[1745578878173,2.51532404,607.73,605.11,0.30311365]
[1745578878371,1.37929989,607.72,605.11,0.30311365]
[1745578878572,1.37929989,607.71,605.11,0.30311365]
[1745578878775,1.37929989,607.7,605.11,0.30311365]
[1745578878972,1.37929989,607.69,605.11,0.30311365]
[1745578879174,1.37929989,607.68,605.09,0.30311365]
[1745578879376,2.51532404,607.67,605.1,0.59014171]
[1745578879573,1.37929989,607.66,605.11,0.30311365]
[1745578879874,1.37929989,607.65,605.11,0.30311365]
[1745578880175,2.5152231,607.64,605.11,0.30311365]
[1745578880375,1.37919895,607.63,605.11,0.30311365]
[1745578880574,1.37919895,607.62,605.12,0.30310714]
[1745578880775,1.37919895,607.61,605.11,0.30310714]
[1745578880968,2.5152231,607.6,605.17,1.04680513]
[1745578881173,1.37919895,607.59,605.18,0.30310714]
[1745578881380,1.37919895,607.58,605.18,0.30310714]
[1745578881669,1.37919895,607.57,605.18,0.30310714]
[1745578881971,2.5152231,607.56,605.18,0.30310714]
[1745578882174,1.37919895,607.55,605.18,0.30310714]
[1745578882475,1.37919895,607.54,605.19,0.30308963]
[1745578882672,1.37919895,607.53,605.18,0.30308963]
[1745578882870,1.37919895,607.52,605.18,0.30308963]
[1745578883070,1.37919895,607.51,605.18,0.30308963]
[1745578883269,1.37919895,607.5,605.18,0.30308963]
[1745578883473,1.24128218,607.47,605.48,1.04680513]
[1745578883674,1.37898885,607.46,605.49,0.30308963]
[1745578883878,1.37898885,607.45,605.48,1.04680513]
[1745578884074,1.37898885,607.44,605.49,0.30308557]
[1745578884270,1.37898885,607.43,605.49,0.30308557]
[1745578884569,1.37898885,607.42,605.49,0.30308557]
[1745578884772,2.515013,607.41,605.49,0.30308557]
[1745578884970,1.37898885,607.4,605.49,0.30308557]
[1745578885173,1.13602415,607.41,605.49,0.30308557]
[1745578885174,1.37898885,607.39,605.49,0.30308557]
[1745578885470,1.37869433,607.38,605.48,1.04680513]
[1745578885673,1.37869433,607.37,605.5,2.375]
[1745578885875,2.51471848,607.36,605.51,0.30308874]
[1745578886177,1.37869433,607.35,605.51,1.69308874]
[1745578886377,1.37869433,607.34,605.52,0.30308874]
[1745578886574,1.37869433,607.33,605.52,0.30308874]
[1745578886772,1.37869433,607.32,605.52,1.81008874]
[1745578886977,2.51471848,607.31,605.52,1.507]
[1745578887176,2.51471848,607.3,605.52,1.507]
[1745578887478,1.37869433,607.29,605.52,1.507]
[1745578887673,1.37869433,607.28,605.52,1.507]
[1745578887876,1.37869433,607.27,605.52,1.507]
[1745578888073,1.37869433,607.26,605.52,1.507]
[1745578888276,1.37869433,607.25,605.52,1.507]
[1745578888473,1.37869433,607.24,605.53,0.30304678]
[1745578888672,2.51471848,607.23,605.53,0.30304678]
[1745578888876,1.37869433,607.22,605.53,0.30304678]
[1745578889075,1.3792947,607.21,605.53,0.30304678]
[1745578889277,1.3792947,607.2,605.53,0.30304678]
[1745578889478,1.3792947,607.19,605.53,0.30304678]
[1745578889680,1.3792947,607.18,605.53,0.30304678]
[1745578889878,2.51531885,607.17,605.53,0.30304678]
[1745578890178,1.3792947,607.16,605.53,0.30304678]
[1745578890380,1.3792947,607.15,605.53,0.30304678]
[1745578890677,2.51531885,607.14,605.53,0.30304678]
[1745578890874,1.13602415,607.14,605.53,0.30304678]
[1745578891077,1.37864088,607.13,605.53,0.30304678]
[1745578891280,2.51466503,607.12,605.53,0.30304678]
[1745578891482,1.37864088,607.11,605.53,0.30304678]
[1745578891682,1.37864088,607.1,605.53,0.30304678]
[1745578891878,1.37864088,607.09,605.52,1.507]
[1745578892077,2.51466503,607.08,605.52,1.507]
[1745578892281,1.37864088,607.07,605.52,1.507]
[1745578892479,2.51466503,607.06,605.52,1.507]
[1745578892677,1.37864088,607.05,605.52,1.507]
[1745578892881,1.3777013,607.04,605.52,1.507]
[1745578893081,2.51372545,607.03,605.53,0.30298507]
[1745578893282,1.3777013,607.02,605.53,0.30298507]
[1745578893477,2.51372545,607.01,605.53,0.30298507]
[1745578893681,1.3777013,607.0,605.53,0.30298507]
[1745578893877,2.51372545,606.99,605.53,0.30298507]
[1745578894182,2.51372545,606.98,605.53,0.30298507]
[1745578894383,1.3777013,606.97,605.53,0.30298507]
[1745578894677,1.3777013,606.96,605.53,0.30298507]
[1745578894876,1.3777013,606.95,605.53,0.30298507]
[1745578895081,2.51372545,606.94,605.53,0.30298507]
[1745578895384,2.51372545,606.93,605.53,0.30298507]
[1745578895582,2.51372545,606.92,605.53,0.30298507]
[1745578895778,1.3777013,606.91,605.53,0.30298507]
[1745578896083,2.51372545,606.9,605.53,0.30298507]
[1745578896383,1.37652052,606.89,605.53,0.30298507]
[1745578896583,1.37652052,606.88,605.53,0.30298507]
[1745578896778,2.51254467,606.87,605.53,0.30298507]
[1745578896981,1.37652052,606.86,605.53,0.30298507]
[1745578897283,2.51254467,606.85,605.54,0.30297181]
[1745578897482,1.37652052,606.84,605.55,0.30297181]
[1745578897680,2.51254467,606.83,605.56,0.30297181]
[1745578897882,1.37652052,606.82,605.57,0.30297181]
[1745578898078,1.37652052,606.81,605.53,0.30297181]
[1745578898282,1.37652052,606.8,605.54,0.30297181]
[1745578898577,1.37652052,606.79,605.52,1.507]
[1745578898780,1.37652052,606.78,605.53,0.30297082]
[1745578898988,1.37652052,606.77,605.53,0.30297082]
[1745578899181,1.37652052,606.76,605.53,0.30297082]
[1745578899379,1.37652052,606.75,605.53,0.30297082]
[1745578899581,2.51254467,606.74,605.53,0.30297082]
[1745578899878,1.37652052,606.73,605.53,0.30297082]
[1745578900077,1.37617242,606.72,605.53,0.30297082]
[1745578900380,2.51219657,606.71,605.54,0.30296741]
[1745578900578,1.37617242,606.7,605.55,0.30296741]
[1745578900778,1.13602415,606.71,605.52,1.507]
[1745578900779,1.37617242,606.69,605.56,0.30296741]
[1745578900981,1.37617242,606.68,605.53,0.30296741]
[1745578901185,2.51219657,606.67,605.54,0.30296741]
[1745578901383,1.37617242,606.66,605.53,0.30296741]
[1745578901581,1.37617242,606.65,605.54,0.30296741]
[1745578901784,1.37617242,606.64,605.55,0.30288696]
[1745578901982,1.37617242,606.64,605.52,1.507]
[1745578901983,1.37633219,606.63,605.53,0.30288696]
[1745578902180,2.51235634,606.62,605.54,0.30288696]
[1745578902384,1.37633219,606.61,605.55,0.30288696]
[1745578902580,1.37633219,606.6,605.56,0.30288696]
[1745578902886,2.51235634,606.59,605.57,0.30288696]
[1745578903182,1.37633219,606.58,605.52,1.507]
[1745578903384,1.37633219,606.57,605.53,0.58986209]
[1745578903584,1.37633219,606.56,605.54,0.30287072]
[1745578903886,1.13602415,606.59,605.54,0.30287072]
[1745578904185,2.51170598,606.58,605.55,0.30287072]
[1745578904487,2.51170598,606.57,605.56,0.30287072]
[1745578904685,1.37568183,606.56,605.56,0.30287072]
[1745578904882,2.51170598,606.55,605.57,0.30287072]
[1745578905184,1.13602415,606.55,605.58,0.30287072]
[1745578905381,1.13602415,606.55,605.59,0.30287072]
[1745578905582,1.13602415,606.55,605.6,0.30287072]
[1745578905885,2.51120565,606.54,605.64,1.04680513]
[1745578906081,2.51120565,606.53,605.65,0.30287072]
[1745578906282,1.37483433,606.52,605.65,0.30287072]
[1745578906489,1.13602415,606.51,605.65,0.30287072]
[1745578906682,1.13602415,606.5,605.65,0.30287072]
[1745578907490,1.13602415,606.49,605.65,0.30287072]
[1745578907686,1.13602415,606.49,605.64,1.04680513]
[1745578907990,1.24128218,608.23,605.65,1.74688368]
[1745578908191,2.50741155,608.22,605.66,0.30288368]
[1745578908392,1.37500405,608.21,605.66,0.30288368]
[1745578908594,1.37500405,608.2,605.66,0.30288368]
[1745578908893,2.50741155,608.19,605.66,0.30288368]
[1745578909090,1.37500405,608.18,605.66,0.30288368]
[1745578909289,1.37500405,608.17,605.65,2.456]
[1745578909591,1.37500405,608.16,605.66,0.3028812]
[1745578909788,1.37500405,608.15,605.66,0.3028812]
[1745578909990,1.37500405,608.14,605.66,0.3028812]
[1745578910186,1.37500405,608.13,605.66,0.3028812]
[1745578910391,1.37500405,608.12,605.66,0.3028812]
[1745578910602,2.50741155,608.11,605.66,0.3028812]
[1745578910791,2.50741155,608.11,605.65,2.456]
[1745578910792,1.37500405,608.1,605.65,2.456]
[1745578910993,1.37500405,608.09,605.66,0.30289266]
[1745578911189,1.37500405,608.08,605.66,0.30289266]
[1745578911389,1.37500405,608.07,605.66,0.30289266]
[1745578911693,2.50741155,608.06,605.66,0.30289266]
[1745578911988,1.37500405,608.05,605.66,0.30289266]
[1745578912188,2.50741155,608.04,605.66,0.30289266]
[1745578912393,1.37500405,608.03,605.67,0.30288657]
[1745578912594,1.37500405,608.02,605.68,0.30288657]
[1745578912790,2.50741155,608.01,605.66,0.30288657]
[1745578912994,1.37500405,608.0,605.67,0.30288657]
[1745578913195,1.37500405,607.99,605.66,0.30288657]
[1745578913391,1.37500405,607.98,605.67,0.30288657]
[1745578913594,1.37500405,607.97,605.66,0.30288657]
[1745578913794,2.50741155,607.96,605.65,2.456]
[1745578913993,1.37500405,607.95,605.66,0.30288668]
[1745578914192,1.37500405,607.94,605.66,0.30288668]
[1745578914396,1.37500405,607.93,605.66,0.30288668]
[1745578914598,1.37500405,607.92,605.66,0.30288668]
[1745578914790,1.37500405,607.91,605.66,0.30288668]
[1745578914991,1.37500405,607.9,605.66,0.30288668]
[1745578915192,1.37500405,607.89,605.66,0.30288668]
[1745578915392,1.37500405,607.88,605.66,0.30288668]
[1745578915592,1.37500405,607.87,605.66,0.30288668]
[1745578915792,1.37339273,607.86,605.66,0.30288668]
[1745578915995,2.50580023,607.85,605.66,0.30288668]
[1745578916198,1.37339273,607.84,605.66,0.30288668]
[1745578916496,2.50580023,607.83,605.66,0.30288668]
[1745578916695,1.37339273,607.82,605.66,0.30288668]
[1745578916890,2.50580023,607.81,605.66,0.30288668]
[1745578917094,1.37339273,607.8,605.66,0.30288668]
[1745578917294,1.37339273,607.79,605.66,0.30288668]
[1745578917499,1.37339273,607.78,605.66,0.30288668]
[1745578917695,1.37339273,607.77,605.66,0.30288668]
[1745578917903,1.37339273,607.76,605.66,0.30288668]
[1745578918099,1.37339273,607.75,605.66,0.30288668]
[1745578918300,1.37339273,607.74,605.66,0.30288668]
[1745578918510,1.37339273,607.73,605.66,1.448]
[1745578918700,1.37339273,607.72,605.67,0.30287869]
[1745578918999,2.50580023,607.71,605.67,0.30287869]
[1745578919203,2.50580023,607.7,605.67,0.30287869]
[1745578919397,1.37339273,607.69,605.67,0.30287869]
[1745578919697,2.50580023,607.68,605.67,0.30287869]
[1745578919901,1.37339273,607.67,605.67,0.30287869]
[1745578920101,2.50580023,607.66,605.67,0.30287869]
[1745578920304,1.37259077,607.65,605.67,0.30287869]
[1745578920503,1.37259077,607.64,605.67,0.30287869]
[1745578920697,1.37259077,607.63,605.67,0.30287869]
[1745578920906,2.50499827,607.62,605.67,0.30287869]
[1745578921196,1.37259077,607.61,605.67,0.30287869]
[1745578921506,2.50499827,607.6,605.67,0.30287869]
[1745578921702,1.37259077,607.59,605.67,0.30287869]
[1745578921996,2.50499827,607.58,605.67,0.30287869]
[1745578922200,2.50499827,607.57,605.67,0.30287869]
[1745578922403,1.37259077,607.56,605.67,0.30287869]
[1745578922603,2.50499827,607.55,605.66,1.448]
[1745578922802,1.37259077,607.54,605.67,0.30288271]
[1745578923004,1.37259077,607.53,605.67,0.30288271]
[1745578923205,1.37259077,607.52,605.67,0.30288271]
[1745578923409,2.50499827,607.51,605.67,0.30288271]
[1745578923608,1.37259077,607.5,605.67,0.30288271]
[1745578923803,1.37259077,607.49,605.67,0.30288271]
[1745578924107,2.50499827,607.48,605.67,0.30288271]
[1745578924307,1.37259077,607.47,605.67,0.30288271]
[1745578924607,2.50499827,607.46,605.67,0.30288271]
[1745578924805,2.50499827,607.45,605.67,1.34968784]
[1745578925005,2.50499827,607.44,605.68,0.30288271]
[1745578925205,1.37259077,607.43,605.68,0.30288271]
[1745578925403,1.37259077,607.42,605.68,0.30288271]
[1745578925603,2.50499827,607.41,605.68,0.30288271]
[1745578925802,2.50499827,607.4,605.68,0.30288271]
[1745578926102,1.37259077,607.39,605.67,1.04680513]
[1745578926402,2.50499827,607.38,605.67,1.04680513]
[1745578926609,2.50499827,607.37,605.67,1.04680513]
[1745578926907,1.37178975,607.36,605.66,1.73487308]
[1745578927111,1.37178975,607.35,605.66,1.448]
[1745578927310,1.37178975,607.34,605.66,1.73493103]
[1745578927512,1.37178975,607.33,605.66,1.73493103]
[1745578927710,1.37178975,607.32,605.66,1.73493103]
[1745578927907,2.50419725,607.31,605.66,1.73493103]
[1745578928107,1.37178975,607.3,605.66,1.73493103]
[1745578928307,1.37178975,607.29,605.66,1.73493103]
[1745578928512,1.37178975,607.28,605.66,1.73493103]
[1745578928714,1.37239029,607.27,605.66,1.73493103]
[1745578928913,1.37239029,607.26,605.66,1.73493103]
[1745578929116,1.37239029,607.25,605.66,1.73493103]
[1745578929416,2.50479779,607.24,605.66,1.73493103]
[1745578929614,1.37239029,607.23,605.66,1.73493103]
[1745578929813,2.50479779,607.22,605.66,1.73493103]
[1745578930011,1.37239029,607.21,605.66,1.448]
[1745578930211,1.37239029,607.2,605.66,1.448]
[1745578930515,1.37239029,607.19,605.66,0.28694759]
[1745578930716,1.37239029,607.18,605.66,0.28694759]
[1745578930915,1.37239029,607.17,605.66,0.28694759]
[1745578931115,1.37239029,607.16,605.66,0.28694759]
[1745578931415,1.37239029,607.15,605.66,0.28694759]
[1745578931714,2.50479779,607.14,605.66,0.28694759]
[1745578931911,1.37239029,607.13,605.66,0.28694759]
[1745578932115,1.37239029,607.12,605.66,0.28694759]
[1745578932315,1.37239029,607.11,605.67,0.30297358]
[1745578932513,1.37239029,607.1,605.67,0.30297358]
[1745578932713,1.37239029,607.09,605.67,0.30297358]
[1745578933016,2.50479779,607.08,605.67,0.30297358]
[1745578933315,1.37239029,607.07,605.66,0.28697244]
[1745578933517,1.37239029,607.06,605.66,0.28697244]
[1745578933714,1.37239029,607.05,605.66,0.28697244]
[1745578933919,1.1324075,607.06,605.66,0.28697244]
[1745578933920,1.37239029,607.04,605.66,0.28697244]
[1745578934110,1.37239029,607.03,605.66,0.28697244]
[1745578934310,2.50479779,607.02,605.66,0.28697244]
[1745578934517,2.50479779,607.01,605.66,0.28697244]
[1745578934717,1.37239029,607.0,605.66,0.28697244]
[1745578934917,2.50479779,606.99,605.66,0.28697244]
[1745578935112,1.37239029,606.98,605.66,0.28697244]
[1745578935313,1.37239029,606.97,605.66,0.28697244]
[1745578935515,1.37239029,606.96,605.66,0.28697244]
[1745578935717,2.50479779,606.95,605.66,0.28697244]
[1745578935917,1.37239029,606.94,605.66,0.28697244]
[1745578936117,1.37616754,606.93,605.66,0.28697244]
[1745578936314,2.50857504,606.92,605.66,0.28697244]
[1745578936518,1.37616754,606.91,605.66,0.28697244]
[1745578936816,2.50857504,606.9,605.66,0.28697244]
[1745578937017,1.37616754,606.89,605.66,0.28697244]
[1745578937218,2.50857504,606.88,605.66,0.28697244]
[1745578937518,2.50857504,606.87,605.66,0.28697244]
[1745578937718,1.37616754,606.86,605.66,0.28697244]
[1745578937914,1.37697916,606.85,605.66,0.28697244]
[1745578938221,1.37697916,606.84,605.66,0.28697244]
[1745578938416,1.37697916,606.83,605.67,0.30297026]
[1745578938617,2.50938666,606.82,605.67,0.30297026]
[1745578938813,1.37697916,606.81,605.67,0.30297026]
[1745578939017,1.37697916,606.8,605.67,0.30297026]
[1745578939218,1.37697916,606.79,605.41,0.30297026]
[1745578939418,1.37697916,606.78,605.66,0.28700321]
[1745578939715,1.37697916,606.77,605.67,0.30297026]
[1745578939918,1.1324075,606.77,605.41,0.30297026]
[1745578940119,1.24128218,608.41,605.42,0.30297026]
[1745578940314,1.24128218,608.41,605.42,0.28703872]
[1745578940517,1.24128218,608.41,605.43,0.30297026]
[1745578940717,2.79908782,608.4,605.43,0.30297026]
[1745578940918,1.37764066,608.39,605.43,0.30297026]
[1745578941218,1.37764066,608.38,605.43,0.30297026]
[1745578941418,1.37764066,608.37,605.42,0.28703872]
[1745578941619,1.37764066,608.36,605.43,0.30297479]
[1745578941820,1.24128218,607.93,605.61,1.04680513]
[1745578942016,1.37764066,607.92,605.62,0.30297479]
[1745578942240,1.37764066,607.91,605.62,0.30297479]
[1745578942417,1.37764066,607.9,605.62,0.30297479]
[1745578942716,2.51224429,607.89,605.62,0.30297479]
[1745578942920,1.37764066,607.88,605.62,0.30297479]
[1745578943116,2.51224429,607.87,605.62,0.30297479]
[1745578943321,1.37764066,607.86,605.62,0.30297479]
[1745578943517,1.37912677,607.85,605.62,0.30297479]
[1745578943718,1.37912677,607.84,605.62,0.30297479]
[1745578943918,1.37912677,607.83,605.63,0.30297479]
[1745578944123,1.37912677,607.82,605.58,0.30297479]
[1745578944323,1.37912677,607.81,605.59,0.30297479]
[1745578944519,1.37912677,607.8,605.58,0.30297479]
[1745578944720,2.5137304,607.79,605.58,0.30297479]
[1745578944924,1.37912677,607.78,605.58,0.30297479]
[1745578945124,1.37912677,607.77,605.58,0.30297479]
[1745578945424,2.5137304,607.76,605.58,0.30297479]
[1745578945625,1.37912677,607.75,605.58,0.30297479]
[1745578945825,1.37912677,607.74,605.58,0.30297479]
[1745578946021,1.37912677,607.73,605.57,1.04680513]
[1745578946226,1.37912677,607.73,605.4,1.494]
[1745578946227,1.37912677,607.72,605.58,0.30297427]
[1745578946421,2.5137304,607.71,605.56,0.30297427]
[1745578946623,1.37912677,607.7,605.56,0.30297427]
[1745578946822,2.5137304,607.69,605.56,0.30297427]
[1745578947025,1.37912677,607.68,605.56,0.30297427]
[1745578947223,1.37912677,607.67,605.56,0.30297427]
[1745578947529,2.5137304,607.66,605.56,0.30297427]
[1745578947728,1.37912677,607.65,605.57,0.3029743]
[1745578947922,2.5137304,607.64,605.58,0.3029743]
[1745578948122,1.37912677,607.63,605.56,0.3029743]
[1745578948325,1.37912677,607.63,605.55,1.04680513]
[1745578948326,1.37912677,607.62,605.57,0.3029743]
[1745578948522,1.37912677,607.61,605.56,0.3029743]
[1745578948726,1.37912677,607.6,605.56,0.3029743]
[1745578948927,1.37954313,607.59,605.56,0.3029743]
[1745578949224,2.51414676,607.58,605.56,0.3029743]
[1745578949426,1.37954313,607.57,605.56,0.3029743]
[1745578949729,2.51414676,607.56,605.56,0.3029743]
[1745578949928,2.51414676,607.55,605.56,0.3029743]
[1745578950128,1.37954313,607.54,605.56,0.3029743]
[1745578950429,2.51414676,607.53,605.56,0.3029743]
[1745578950632,1.37954313,607.52,605.56,0.3029743]
[1745578950823,1.37954313,607.51,605.56,0.3029743]
[1745578951023,2.51414676,607.5,605.56,0.3029743]
[1745578951226,1.37954313,607.49,605.57,0.3029743]
[1745578951529,2.51414676,607.48,605.58,0.3029743]